[Event "SixDays Budapest IM-B June 2024"]
[Site "Budapest"]
[Date "2024.06.06"]
[Round "6.3"]
[White "Krizsany, Laszlo"]
[Black "Nagarkatte Vedant"]
[Result "0-1"]
[ECO "A01"]
[WhiteElo "2330"]
[BlackElo "2272"]
[Annotator "RC"]
[PlyCount "170"]
[EventDate "2024.06.01"]
[EventType "tourn"]
[EventCountry "HUN"]
[SourceTitle "playchess.com"]
[Source "ChessBase"]
[SourceQuality "1"]
[TimeControl "5400+30"]

1. b3 {[%emt 0:00:05]} d5 {[%emt 0:04:18]} 2. Bb2 {[%emt 0:00:07]} c5 {[%emt 0:00:19]} 3. e3 {[%emt 0:00:12]} Nc6 {[%emt 0:00:30]} 4. Bb5 {[%emt 0:01:02]} Bd7 {[%emt 0:00:04]} 5. Nf3 {[%emt 0:02:43]} e6 {[%emt 0:04:35]} 6. O-O {[%emt 0:01:14]} Nf6 {[%emt 0:00:10]} 7. d3 {[%emt 0:02:38]} Be7 {[%emt 0:04:14]} 8. Nbd2 {[%emt 0:00:50]} a6 {[%emt 0:00:17]} 9. Bxc6 {[%emt 0:00:12]} Bxc6 {[%emt 0:00:06]} 10. Ne5 {[%emt 0:02:16]} Rc8 {[%emt 0:00:56]} 11. Qe2 {[%emt 0:06:10]} O-O {[%emt 0:01:21]} 12. f4 {[%emt 0:04:46]} Nd7 {[%emt 0:24:17]} 13. Ndf3 {[%emt 0:27:13]} Nxe5 {[%emt 0:02:07]} 14. Nxe5 f6 {[%emt 0:05:40]} 15. Nxc6 {[%emt 0:02:20]} Rxc6 {[%emt 0:00:05]} 16. c4 {[%emt 0:00:44]} Rd6 {[%emt 0:02:26]} 17. d4 {[%emt 0:02:25]} dxc4 {[%emt 0:07:51]} 18. bxc4 {[%emt 0:02:27]} Qc7 {[%emt 0:04:53]} 19. f5 {[%emt 0:04:39]} Rc8 {[%emt 0:05:35]} 20. Rac1 {[%emt 0:05:08]} Qd7 {[%emt 0:01:59]} 21. fxe6 {[%emt 0:02:03]} Rxe6 {[%emt 0:03:24]} 22. d5 {[%emt 0:00:37]} Re4 {[%emt 0:02:17]} 23. Qd3 {[%emt 0:14:56]} Rg4 {[%emt 0:02:42]} 24. e4 {[%emt 0:01:52]} Bd6 {[%emt 0:00:29]} 25. Qh3 {[%emt 0:05:15]} Re8 {[%emt 0:03:34]} 26. Rfe1 {[%emt 0:00:37]} Re7 {[%emt 0:03:44]} 27. a4 {[%emt 0:04:37]} Rgxe4 {[%emt 0:03:00]} 28. Qxd7 {[%emt 0:01:38]} Rxe1+ {[%emt 0:00:03]} 29. Rxe1 {[%emt 0:00:11]} Rxd7 {[%emt 0:00:03]} 30. Re6 {[%emt 0:01:14]} Kf7 {[%emt 0:01:06]} 31. Ba3 {[%emt 0:01:06]} Be7 {[%emt 0:04:38]} 32. a5 {[%emt 0:02:03]} Bd8 {[%emt 0:02:14]} 33. Bxc5 {[%emt 0:00:39]} Bxa5 {[%emt 0:00:04]} 34. Kf2 {[%emt 0:01:02]} Bc7 {[%emt 0:03:37]} 35. h3 {[%emt 0:00:41]} Be5 {[%emt 0:00:54]} 36. Ke3 {[%emt 0:02:02]} b5 {[%emt 0:01:59]} 37. Rxa6 {[%emt 0:00:21]} bxc4 {[%emt 0:00:01]} 38. Ke4 {[%emt 0:00:16]} Rc7 {[%emt 0:01:36]} 39. Bb6 {[%emt 0:00:06]} Rc8 {[%emt 0:01:00]} 40. Ra7+ {[%emt 0:00:52]} Kg6 {[%emt 0:00:05]} 41. Be3 {[%emt 0:00:25]} Re8 {[%emt 0:00:45]} 42. Ra6 {[%emt 0:00:23]} Bb2+ {[%emt 0:00:43]} 43. Kf3 {[%emt 0:00:19]} Rd8 {[%emt 0:01:34]} 44. Ke4 {[%emt 0:00:53]} Re8+ {[%emt 0:00:01]} 45. Kf3 {[%emt 0:00:05]} Re5 {[%emt 0:00:50]} 46. d6 {[%emt 0:00:21]} Rd5 {[%emt 0:00:12]} 47. Bf4 {[%emt 0:00:56]} Rd3+ {[%emt 0:00:52]} 48. Ke2 {[%emt 0:00:24]} Kf5 {[%emt 0:00:32]} 49. Bh2 {[%emt 0:00:53]} Be5 {[%emt 0:00:43]} 50. Bxe5 {[%emt 0:00:42]} Kxe5 {[%emt 0:00:19]} 51. Rc6 {[%emt 0:00:21]} Rxd6 {[%emt 0:00:31]} 52. Rxc4 {[%emt 0:00:02]} g5 {[%emt 0:00:22]} 53. Ke3 {[%emt 0:00:17]} Rd5 {[%emt 0:00:49]} 54. Rc7 {[%emt 0:00:25]} h5 {[%emt 0:00:07]} 55. g4 {[%emt 0:01:10]} h4 {[%emt 0:00:28]} 56. Re7+ {[%emt 0:00:07]} Kd6 {[%emt 0:00:05]} 57. Ra7 {[%emt 0:00:19]} Rb5 {[%emt 0:01:15]} 58. Ra3 {[%emt 0:00:03]} Ke5 {[%emt 0:00:16]} 59. Kf3 {[%emt 0:00:12]} Rb4 {[%emt 0:00:41]} 60. Ra5+ {[%emt 0:00:21]} Ke6 {[%emt 0:00:38]} 61. Ra6+ {[%emt 0:00:02]} Kf7 {[%emt 0:00:20]} 62. Ra7+ {[%emt 0:00:05]} Ke6 {[%emt 0:00:01]} 63. Ra6+ {[%emt 0:00:06]} Ke5 {[%emt 0:01:06]} 64. Ra5+ {[%emt 0:00:05]} Kd4 {[%emt 0:00:25]} 65. Ra3 {[%emt 0:01:24]} Rc4 {[%emt 0:00:34]} 66. Rb3 {[%emt 0:00:31]} Ra4 {[%emt 0:00:24]} 67. Re3 {[%emt 0:01:58]} Ra2 {[%emt 0:00:06]} 68. Re6 {[%emt 0:01:33]} Rh2 {[%emt 0:00:45]} 69. Rxf6 {[%emt 0:00:04]} Rxh3+ {[%emt 0:00:04]} 70. Kg2 {[%emt 0:00:26]} Rg3+ {[%emt 0:00:04]} 71. Kh2 {[%emt 0:00:02]} Ke4 {[%emt 0:00:36]} 72. Rf5 {[%emt 0:00:34]} Rxg4 {[%emt 0:00:04]} 73. Ra5 {[%emt 0:00:06]} Rg3 {[%emt 0:00:06]} 74. Ra2 {[%emt 0:00:41]} Kf5 {[%emt 0:00:20]} 75. Ra5+ {[%emt 0:00:30]} Kg4 {[%emt 0:00:08]} 76. Ra4+ {[%emt 0:00:04]} Kh5 {[%emt 0:00:03]} 77. Ra2 {[%emt 0:00:08]} Rb3 {[%emt 0:00:05]} 78. Rc2 {[%emt 0:00:16]} Rb5 {[%emt 0:00:07]} 79. Ra2 {[%emt 0:00:13]} g4 {[%emt 0:00:11]} 80. Rc2 {[%emt 0:00:10]} h3 {[%emt 0:00:16]} 81. Rc8 {[%emt 0:00:37]} Rb2+ {[%emt 0:01:37]} 82. Kg1 {[%emt 0:00:23]} Kh4 {[%emt 0:00:08]} 83. Rc3 {[%emt 0:00:08]} Rb4 {[%emt 0:00:08]} 84. Rc1 {[%emt 0:00:19]} g3 {[%emt 0:00:09]} 85. Ra1 {[%emt 0:00:09]} h2+ {[%emt 0:00:17]} 0-1

[Event "SixDays Budapest IM-B June 2024"]
[Site "Budapest"]
[Date "2024.06.06"]
[Round "6.4"]
[White "Danilenko, Dmitriy"]
[Black "Advaitt Srikant Koduri"]
[Result "1-0"]
[ECO "B76"]
[WhiteElo "2403"]
[BlackElo "2066"]
[Annotator "RC"]
[PlyCount "77"]
[EventDate "2024.06.01"]
[EventType "tourn"]
[EventCountry "HUN"]
[SourceTitle "playchess.com"]
[Source "ChessBase"]
[SourceQuality "1"]
[TimeControl "5400+30"]

1. e4 {[%emt 0:03:15]} c5 {[%emt 0:00:13]} 2. Nf3 {[%emt 0:00:17]} d6 {[%emt 0:00:09]} 3. d4 {[%emt 0:00:36]} cxd4 {[%emt 0:00:09]} 4. Nxd4 {[%emt 0:00:03]} Nf6 {[%emt 0:00:08]} 5. Nc3 {[%emt 0:00:03]} g6 {[%emt 0:00:22]} 6. Be3 {[%emt 0:00:25]} Bg7 {[%emt 0:00:16]} 7. f3 {[%emt 0:00:08]} O-O {[%emt 0:00:10]} 8. Qd2 {[%emt 0:00:11]} Nc6 {[%emt 0:00:19]} 9. O-O-O {[%emt 0:00:29]} d5 {[%emt 0:00:42]} 10. Nxc6 {[%emt 0:00:47]} bxc6 {[%emt 0:00:10]} 11. Bc4 {[%emt 0:00:19]} e6 {[%emt 0:00:07]} 12. Bb3 {[%emt 0:00:14]} Qc7 {[%emt 0:03:30]} 13. h4 {[%emt 0:01:04]} Bb7 {[%emt 0:00:43]} 14. Bf4 {[%emt 0:04:08]} e5 {[%emt 0:21:14]} 15. Bh6 {[%emt 0:01:08]} d4 {[%emt 0:10:32]} 16. Na4 {[%emt 0:01:06]} c5 {[%emt 0:02:09]} 17. Bc4 {[%emt 0:00:08]} Qc6 {[%emt 0:10:57]} 18. b3 {[%emt 0:40:39]} Ba6 {[%emt 0:02:54]} 19. Nb2 {[%emt 0:00:16]} Bxc4 {[%emt 0:02:09]} 20. Nxc4 {[%emt 0:00:08]} Rfe8 {[%emt 0:01:27]} 21. Bxg7 {[%emt 0:15:20]} Kxg7 {[%emt 0:00:21]} 22. h5 {[%emt 0:00:33]} Rab8 {[%emt 0:12:00]} 23. hxg6 {[%emt 0:01:17]} fxg6 {[%emt 0:00:13]} 24. Qg5 {[%emt 0:01:32]} Qe6 {[%emt 0:02:00]} 25. a3 {[%emt 0:14:40]} Rb7 {[%emt 0:03:10]} 26. Rh4 {[%emt 0:05:20]} Kg8 {[%emt 0:01:00]} 27. Qd2 {[%emt 0:01:39]} Rb5 {[%emt 0:07:50]} 28. Rdh1 {[%emt 0:01:15]} Re7 {[%emt 0:00:52]} 29. g4 {[%emt 0:03:14]} Reb7 {[%emt 0:01:42]} 30. Qd3 {[%emt 0:00:39]} a6 {[%emt 0:00:32]} 31. Rh6 {[%emt 0:00:59]} Rf7 {[%emt 0:00:59]} 32. Qe2 {[%emt 0:01:43]} Rb8 {[%emt 0:01:48]} 33. Qh2 {[%emt 0:00:30]} Re7 {[%emt 0:00:49]} 34. Rxg6+ {[%emt 0:00:34]} hxg6 {[%emt 0:02:34]} 35. Qh8+ {[%emt 0:00:04]} Kf7 {[%emt 0:00:04]} 36. Qxb8 {[%emt 0:00:09]} Ne8 {[%emt 0:03:23]} 37. Rh7+ {[%emt 0:01:17]} Kf6 {[%emt 0:00:47]} 38. Qd8 {[%emt 0:00:28]} Ng7 {[%emt 0:03:15]} 39. g5+ {[%emt 0:00:15]} 1-0

[Event "SixDays Budapest IM-B June 2024"]
[Site "Budapest"]
[Date "2024.06.06"]
[Round "6.5"]
[White "Izsak, Gyula"]
[Black "Varga, Csaba Zoltan"]
[Result "0-1"]
[ECO "A04"]
[WhiteElo "2386"]
[BlackElo "2157"]
[Annotator "RC"]
[PlyCount "68"]
[EventDate "2024.06.01"]
[EventType "tourn"]
[EventCountry "HUN"]
[SourceTitle "playchess.com"]
[Source "ChessBase"]
[SourceQuality "1"]
[TimeControl "5400+30"]

1. Nf3 {[%emt 0:05:55]} d6 {[%emt 0:00:09]} 2. d4 {[%emt 0:00:45]} g6 {[%emt 0:00:05]} 3. g3 {[%emt 0:00:57]} Bg7 {[%emt 0:00:06]} 4. Bg2 {[%emt 0:01:22]} Nd7 {[%emt 0:00:59]} 5. O-O {[%emt 0:06:43]} e5 {[%emt 0:00:05]} 6. dxe5 {[%emt 0:01:18]} dxe5 {[%emt 0:00:07]} 7. Nc3 {[%emt 0:01:23]} Ngf6 {[%emt 0:00:12]} 8. e4 {[%emt 0:00:51]} O-O {[%emt 0:00:05]} 9. Qe2 {[%emt 0:03:15]} a5 {[%emt 0:09:17]} 10. Rd1 {[%emt 0:21:27]} Qe7 {[%emt 0:00:07]} 11. Ne1 {[%emt 0:06:31]} b6 {[%emt 0:03:50]} 12. Nd5 {[%emt 0:07:44]} Nxd5 {[%emt 0:00:05]} 13. exd5 {[%emt 0:00:03]} Ba6 {[%emt 0:00:08]} 14. c4 {[%emt 0:04:04]} Rae8 {[%emt 0:00:05]} 15. b3 {[%emt 0:03:10]} e4 {[%emt 0:02:34]} 16. Rb1 {[%emt 0:01:17]} f5 {[%emt 0:00:23]} 17. Bf4 {[%emt 0:02:46]} Be5 {[%emt 0:03:36]} 18. Bh6 {[%emt 0:04:11]} Rf7 {[%emt 0:00:28]} 19. Qd2 {[%emt 0:00:52]} Nf6 {[%emt 0:00:47]} 20. Rbc1 {[%emt 0:05:10]} Ng4 {[%emt 0:01:09]} 21. Bg5 {[%emt 0:00:48]} Qf8 {[%emt 0:03:48]} 22. h3 {[%emt 0:09:22]} h6 {[%emt 0:03:42]} 23. hxg4 {[%emt 0:02:47]} hxg5 {[%emt 0:00:06]} 24. gxf5 {[%emt 0:04:34]} gxf5 {[%emt 0:00:20]} 25. c5 {[%emt 0:03:32]} bxc5 {[%emt 0:05:23]} 26. Qxa5 {[%emt 0:00:17]} Be2 {[%emt 0:01:15]} 27. Rd2 {[%emt 0:00:41]} Bg4 {[%emt 0:00:51]} 28. Qxc5 {[%emt 0:00:26]} Bd6 {[%emt 0:00:39]} 29. Qc2 {[%emt 0:01:50]} Qh6 {[%emt 0:01:50]} 30. f3 {[%emt 0:00:25]} Bxg3 {[%emt 0:00:41]} 31. Kf1 {[%emt 0:00:24]} exf3 {[%emt 0:02:09]} 32. Nxf3 {[%emt 0:00:16]} Bxf3 {[%emt 0:00:18]} 33. Bxf3 {[%emt 0:00:07]} g4 {[%emt 0:00:07]} 34. Bg2 {[%emt 0:00:21]} Qf4+ {[%emt 0:00:15]} 0-1

[Event "SixDays Budapest IM-B June 2024"]
[Site "Budapest"]
[Date "2024.06.07"]
[Round "7.2"]
[White "Advaitt Srikant Koduri"]
[Black "Izsak, Gyula"]
[Result "1/2-1/2"]
[ECO "A40"]
[WhiteElo "2066"]
[BlackElo "2386"]
[Annotator "RC"]
[PlyCount "35"]
[EventDate "2024.06.01"]
[EventType "tourn"]
[EventCountry "HUN"]
[SourceTitle "playchess.com"]
[Source "ChessBase"]
[SourceQuality "1"]
[TimeControl "5400+30"]

1. d4 {[%emt 0:00:05]} e6 {[%emt 0:49:58]} 2. Nf3 {[%emt 0:00:12]} c5 {[%emt 0:00:41]} 3. c3 {[%emt 0:00:10]} Nf6 {[%emt 0:00:23]} 4. Bf4 {[%emt 0:00:41]} b6 {[%emt 0:01:11]} 5. e3 {[%emt 0:00:50]} Bb7 {[%emt 0:00:43]} 6. Nbd2 {[%emt 0:01:24]} Be7 {[%emt 0:01:32]} 7. Nc4 {[%emt 0:04:04]} d5 {[%emt 0:00:57]} 8. Ncd2 {[%emt 0:00:17]} O-O {[%emt 0:00:58]} 9. Bd3 {[%emt 0:02:57]} Ne4 {[%emt 0:09:47]} 10. O-O {[%emt 0:01:34]} f5 {[%emt 0:01:39]} 11. Bxb8 {[%emt 0:04:54]} Rxb8 {[%emt 0:01:40]} 12. Ne5 {[%emt 0:00:14]} Nxd2 {[%emt 0:00:52]} 13. Qxd2 {[%emt 0:00:08]} Bd6 {[%emt 0:00:15]} 14. f4 {[%emt 0:00:41]} Bxe5 {[%emt 0:00:32]} 15. fxe5 {[%emt 0:02:05]} c4 {[%emt 0:00:57]} 16. Bc2 {[%emt 0:02:32]} Bc6 {[%emt 0:00:05]} 17. b4 {[%emt 0:30:34]} a5 {[%emt 0:01:23]} 18. Rfb1 {[%emt 0:01:08]} 1/2-1/2

[Event "SixDays Budapest IM-B June 2024"]
[Site "Budapest"]
[Date "2024.06.07"]
[Round "7.3"]
[White "Nagarkatte Vedant"]
[Black "Danilenko, Dmitriy"]
[Result "1/2-1/2"]
[ECO "C54"]
[WhiteElo "2272"]
[BlackElo "2403"]
[Annotator "RC"]
[PlyCount "24"]
[EventDate "2024.06.01"]
[EventType "tourn"]
[EventCountry "HUN"]
[SourceTitle "playchess.com"]
[Source "ChessBase"]
[SourceQuality "1"]
[TimeControl "5400+30"]

1. e4 {[%emt 0:06:49]} e5 {[%emt 0:00:02]} 2. Nf3 {[%emt 0:00:07]} Nc6 {[%emt 0:00:01]} 3. Bc4 {[%emt 0:00:40]} Bc5 {[%emt 0:00:04]} 4. c3 {[%emt 0:00:04]} Nf6 {[%emt 0:00:06]} 5. d3 {[%emt 0:00:07]} O-O {[%emt 0:00:07]} 6. Nbd2 {[%emt 0:00:13]} d5 {[%emt 0:00:05]} 7. exd5 {[%emt 0:00:04]} Nxd5 {[%emt 0:00:02]} 8. Ne4 {[%emt 0:00:50]} Be7 {[%emt 0:00:09]} 9. O-O {[%emt 0:00:42]} Nb6 {[%emt 0:00:24]} 10. Bb3 {[%emt 0:01:20]} Bf5 {[%emt 0:00:10]} 11. Re1 {[%emt 0:01:00]} Bg6 {[%emt 0:00:08]} 12. Ng3 {[%emt 0:08:26]} Qxd3 {[%emt 0:00:14]} 1/2-1/2

[Event "SixDays Budapest IM-B June 2024"]
[Site "Budapest"]
[Date "2024.06.07"]
[Round "7.4"]
[White "Nanditha V"]
[Black "Krizsany, Laszlo"]
[Result "0-1"]
[ECO "B04"]
[WhiteElo "1852"]
[BlackElo "2330"]
[Annotator "RC"]
[PlyCount "92"]
[EventDate "2024.06.01"]
[EventType "tourn"]
[EventCountry "HUN"]
[SourceTitle "playchess.com"]
[Source "ChessBase"]
[SourceQuality "1"]
[TimeControl "5400+30"]

1. e4 {[%emt 0:00:03]} Nf6 {[%emt 0:00:08]} 2. e5 {[%emt 0:02:23]} Nd5 {[%emt 0:00:06]} 3. d4 {[%emt 0:01:00]} d6 {[%emt 0:00:06]} 4. Nf3 {[%emt 0:00:39]} Nb6 {[%emt 0:00:07]} 5. a4 {[%emt 0:02:29]} a5 {[%emt 0:00:04]} 6. Nc3 {[%emt 0:05:08]} g6 {[%emt 0:00:20]} 7. h4 {[%emt 0:06:30]} h6 {[%emt 0:01:56]} 8. h5 {[%emt 0:06:48]} g5 {[%emt 0:00:15]} 9. Bb5+ {[%emt 0:10:07]} c6 {[%emt 0:00:39]} 10. Bd3 {[%emt 0:02:18]} Bg7 {[%emt 0:01:09]} 11. Qe2 {[%emt 0:07:46]} dxe5 {[%emt 0:11:54]} 12. dxe5 {[%emt 0:01:35]} Qc7 {[%emt 0:01:33]} 13. Be3 {[%emt 0:03:18]} Bg4 {[%emt 0:02:44]} 14. O-O-O {[%emt 0:02:01]} N8d7 {[%emt 0:08:59]} 15. Bd4 {[%emt 0:09:14]} Bxf3 {[%emt 0:03:41]} 16. gxf3 {[%emt 0:01:15]} Bxe5 {[%emt 0:00:51]} 17. Rhe1 {[%emt 0:01:46]} Bf6 {[%emt 0:08:45]} 18. Bxf6 {[%emt 0:03:15]} Nxf6 {[%emt 0:04:52]} 19. Bf5 {[%emt 0:04:39]} O-O {[%emt 0:02:10]} 20. Kb1 {[%emt 0:01:05]} e6 {[%emt 0:00:47]} 21. Bd3 {[%emt 0:00:22]} Qf4 {[%emt 0:02:36]} 22. Rg1 {[%emt 0:01:23]} Rad8 {[%emt 0:01:29]} 23. Qe3 {[%emt 0:01:51]} Nbd5 {[%emt 0:02:37]} 24. Nxd5 {[%emt 0:02:03]} Nxd5 {[%emt 0:00:10]} 25. Qe4 {[%emt 0:03:47]} Qxe4 {[%emt 0:00:10]} 26. fxe4 {[%emt 0:01:36]} Nf4 {[%emt 0:00:09]} 27. b3 {[%emt 0:03:50]} Kg7 {[%emt 0:00:17]} 28. Rh1 {[%emt 0:00:58]} Rd4 {[%emt 0:00:21]} 29. Kc1 {[%emt 0:05:18]} Rfd8 {[%emt 0:00:11]} 30. Bc4 {[%emt 0:03:18]} Rxd1+ {[%emt 0:00:07]} 31. Rxd1 {[%emt 0:00:02]} Rxd1+ {[%emt 0:00:05]} 32. Kxd1 {[%emt 0:00:02]} Kf6 {[%emt 0:00:10]} 33. Kd2 {[%emt 0:03:57]} Ke5 {[%emt 0:00:29]} 34. f3 {[%emt 0:01:52]} Nxh5 {[%emt 0:00:10]} 35. Ke3 {[%emt 0:00:17]} Nf4 {[%emt 0:00:12]} 36. c3 {[%emt 0:00:04]} h5 {[%emt 0:00:19]} 37. b4 {[%emt 0:00:22]} b6 {[%emt 0:00:11]} 38. bxa5 {[%emt 0:01:51]} bxa5 {[%emt 0:00:04]} 39. Kf2 {[%emt 0:00:26]} h4 {[%emt 0:00:28]} 40. Ba6 {[%emt 0:01:16]} Ng6 {[%emt 0:00:39]} 41. Bd3 {[%emt 0:01:00]} Kf4 {[%emt 0:00:09]} 42. Ba6 {[%emt 0:01:20]} Ne5 {[%emt 0:00:08]} 43. Be2 {[%emt 0:00:22]} h3 {[%emt 0:00:44]} 44. Bf1 {[%emt 0:00:18]} g4 {[%emt 0:00:29]} 45. fxg4 {[%emt 0:00:03]} Nxg4+ {[%emt 0:00:07]} 46. Kg1 {[%emt 0:00:20]} Kg3 {[%emt 0:00:11]} 0-1

[Event "SixDays Budapest IM-B June 2024"]
[Site "Budapest"]
[Date "2024.06.07"]
[Round "8.2"]
[White "Krizsany, Laszlo"]
[Black "Bashylina, Luisa"]
[Result "1/2-1/2"]
[ECO "D80"]
[WhiteElo "2330"]
[BlackElo "2250"]
[Annotator "RC"]
[PlyCount "92"]
[EventDate "2024.06.01"]
[EventType "tourn"]
[EventCountry "HUN"]
[SourceTitle "playchess.com"]
[Source "ChessBase"]
[SourceQuality "1"]
[TimeControl "5400+30"]

1. d4 {[%emt 0:00:05]} Nf6 {[%emt 0:00:06]} 2. c4 {[%emt 0:00:10]} g6 {[%emt 0:00:03]} 3. Nc3 {[%emt 0:00:14]} d5 {[%emt 0:00:04]} 4. Bg5 {[%emt 0:00:18]} Bg7 {[%emt 0:00:05]} 5. e3 {[%emt 0:01:07]} c5 {[%emt 0:01:37]} 6. Nf3 {[%emt 0:09:27]} cxd4 {[%emt 0:00:56]} 7. Nxd4 {[%emt 0:04:28]} dxc4 {[%emt 0:08:22]} 8. Bxc4 {[%emt 0:02:01]} O-O {[%emt 0:00:31]} 9. O-O {[%emt 0:01:06]} Bd7 {[%emt 0:08:42]} 10. Qe2 {[%emt 0:06:57]} Nc6 {[%emt 0:07:06]} 11. Rad1 {[%emt 0:00:45]} Qc8 {[%emt 0:06:27]} 12. Bxf6 {[%emt 0:08:16]} exf6 {[%emt 0:04:34]} 13. Nd5 {[%emt 0:02:51]} Nxd4 {[%emt 0:07:47]} 14. exd4 {[%emt 0:00:56]} Kh8 {[%emt 0:05:46]} 15. Ne3 {[%emt 0:04:30]} f5 {[%emt 0:04:24]} 16. Bb5 {[%emt 0:04:43]} Re8 {[%emt 0:03:55]} 17. Qd3 {[%emt 0:02:24]} Re4 {[%emt 0:03:11]} 18. Bxd7 {[%emt 0:02:00]} Qxd7 {[%emt 0:00:48]} 19. Nc2 {[%emt 0:00:25]} Rae8 {[%emt 0:04:48]} 20. b3 {[%emt 0:04:33]} Qd5 {[%emt 0:05:47]} 21. f3 {[%emt 0:02:12]} Re2 {[%emt 0:01:45]} 22. Rf2 {[%emt 0:01:12]} R2e7 {[%emt 0:00:53]} 23. g3 {[%emt 0:06:26]} b5 {[%emt 0:03:56]} 24. Kg2 {[%emt 0:01:45]} a6 {[%emt 0:01:52]} 25. Rdd2 {[%emt 0:04:21]} h5 {[%emt 0:02:43]} 26. Rfe2 {[%emt 0:02:30]} Rxe2+ {[%emt 0:01:20]} 27. Rxe2 {[%emt 0:00:02]} Rd8 {[%emt 0:00:36]} 28. Rd2 {[%emt 0:03:08]} Bf6 {[%emt 0:01:23]} 29. Qe3 {[%emt 0:06:42]} Kg7 {[%emt 0:01:35]} 30. Qf4 {[%emt 0:01:02]} Qc6 {[%emt 0:03:27]} 31. h4 {[%emt 0:02:34]} a5 {[%emt 0:00:53]} 32. Qe3 {[%emt 0:00:53]} Rd5 {[%emt 0:01:58]} 33. Qf4 {[%emt 0:05:50]} Qd7 {[%emt 0:00:30]} 34. Qe3 {[%emt 0:02:10]} Qc7 {[%emt 0:05:09]} 35. Kh3 {[%emt 0:00:46]} Qd7 {[%emt 0:01:36]} 36. Kg2 {[%emt 0:00:08]} Qe6 {[%emt 0:01:27]} 37. Qxe6 {[%emt 0:03:02]} fxe6 {[%emt 0:00:04]} 38. f4 {[%emt 0:00:19]} e5 {[%emt 0:00:11]} 39. fxe5 {[%emt 0:00:32]} Bxe5 {[%emt 0:00:07]} 40. Kf3 {[%emt 0:00:17]} Kf7 {[%emt 0:00:21]} 41. Rd3 {[%emt 0:00:59]} Bg7 {[%emt 0:00:43]} 42. Rc3 {[%emt 0:00:52]} Ke6 {[%emt 0:00:52]} 43. Rc6+ {[%emt 0:02:03]} Rd6 {[%emt 0:00:13]} 44. Rc5 {[%emt 0:00:12]} Rd5 {[%emt 0:01:48]} 45. Rc6+ {[%emt 0:00:10]} Rd6 {[%emt 0:01:07]} 46. Rc5 {[%emt 0:00:11]} Rd5 {[%emt 0:00:43]} 1/2-1/2

[Event "SixDays Budapest IM-B June 2024"]
[Site "Budapest"]
[Date "2024.06.07"]
[Round "8.3"]
[White "Danilenko, Dmitriy"]
[Black "Nanditha V"]
[Result "1-0"]
[ECO "B12"]
[WhiteElo "2403"]
[BlackElo "1852"]
[Annotator "RC"]
[PlyCount "96"]
[EventDate "2024.06.01"]
[EventType "tourn"]
[EventCountry "HUN"]
[SourceTitle "playchess.com"]
[Source "ChessBase"]
[SourceQuality "1"]
[TimeControl "5400+30"]

1. e4 {[%emt 0:00:04]} c6 {[%emt 0:00:11]} 2. d4 {[%emt 0:00:06]} d5 {[%emt 0:00:03]} 3. f3 {[%emt 0:00:07]} dxe4 {[%emt 0:00:11]} 4. fxe4 {[%emt 0:00:17]} e5 {[%emt 0:00:04]} 5. Nf3 {[%emt 0:00:08]} Bg4 {[%emt 0:00:07]} 6. c3 {[%emt 0:00:07]} Nd7 {[%emt 0:00:06]} 7. Bd3 {[%emt 0:00:17]} Bd6 {[%emt 0:01:22]} 8. O-O {[%emt 0:00:16]} Ngf6 {[%emt 0:02:41]} 9. Be3 {[%emt 0:00:40]} O-O {[%emt 0:00:37]} 10. Nbd2 {[%emt 0:00:19]} Bh5 {[%emt 0:03:03]} 11. Kh1 {[%emt 0:05:11]} Qe7 {[%emt 0:03:54]} 12. Qc2 {[%emt 0:03:03]} c5 {[%emt 0:02:08]} 13. d5 {[%emt 0:02:46]} Bg6 {[%emt 0:05:01]} 14. Bg5 {[%emt 0:02:17]} h6 {[%emt 0:00:36]} 15. Bh4 {[%emt 0:00:09]} Bh5 {[%emt 0:02:11]} 16. Nc4 {[%emt 0:01:36]} Bxf3 {[%emt 0:00:33]} 17. Rxf3 {[%emt 0:00:28]} g5 {[%emt 0:00:15]} 18. Ne3 {[%emt 0:04:01]} Ne8 {[%emt 0:03:46]} 19. Nf5 {[%emt 0:01:17]} Qf6 {[%emt 0:00:43]} 20. Qd2 {[%emt 0:06:44]} Ng7 {[%emt 0:05:04]} 21. Raf1 {[%emt 0:02:24]} Be7 {[%emt 0:01:12]} 22. d6 {[%emt 0:03:53]} Bd8 {[%emt 0:01:41]} 23. Ne7+ {[%emt 0:00:19]} Bxe7 {[%emt 0:00:51]} 24. Rxf6 {[%emt 0:00:07]} Bxf6 {[%emt 0:00:06]} 25. Bb5 {[%emt 0:00:32]} gxh4 {[%emt 0:04:04]} 26. Bxd7 {[%emt 0:02:11]} Bg5 {[%emt 0:00:14]} 27. Qd5 {[%emt 0:00:01]} Rad8 {[%emt 0:02:17]} 28. Qxb7 {[%emt 0:01:15]} Rb8 {[%emt 0:01:09]} 29. Qxa7 {[%emt 0:00:48]} Rxb2 {[%emt 0:00:27]} 30. Qxc5 {[%emt 0:00:35]} Bf4 {[%emt 0:02:31]} 31. Bg4 {[%emt 0:01:22]} h5 {[%emt 0:02:15]} 32. d7 {[%emt 0:00:17]} Rbb8 {[%emt 0:03:20]} 33. Bh3 {[%emt 0:00:34]} Rfd8 {[%emt 0:02:02]} 34. Qe7 {[%emt 0:01:07]} Rf8 {[%emt 0:04:58]} 35. Qxh4 {[%emt 0:00:18]} f6 {[%emt 0:00:32]} 36. Qf2 {[%emt 0:00:37]} h4 {[%emt 0:01:41]} 37. Qxh4 {[%emt 0:00:42]} Kf7 {[%emt 0:01:12]} 38. Qf2 {[%emt 0:00:19]} Rh8 {[%emt 0:01:39]} 39. Rd1 {[%emt 0:01:20]} f5 {[%emt 0:00:48]} 40. g3 {[%emt 0:00:16]} Rxh3 {[%emt 0:00:33]} 41. d8=Q {[%emt 0:00:34]} Rxd8 {[%emt 0:00:19]} 42. Rxd8 {[%emt 0:00:02]} Bxg3 {[%emt 0:00:11]} 43. Qa7+ {[%emt 0:00:23]} Kg6 {[%emt 0:00:17]} 44. exf5+ {[%emt 0:00:07]} Nxf5 {[%emt 0:00:48]} 45. Rg8+ {[%emt 0:00:13]} Kf6 {[%emt 0:00:18]} 46. Qb6+ {[%emt 0:00:45]} Ke7 {[%emt 0:00:08]} 47. Qd8+ {[%emt 0:00:16]} Ke6 {[%emt 0:00:26]} 48. Rg6+ {[%emt 0:00:13]} Kf7 {[%emt 0:00:06]} 1-0